Cogmind - Beta 10.2 @@@ ROGUE MODE // 2020.11.18 @ 11:40:08 // Halloween2020/ForbiddenLore Player: blelm Result: Self-destructed Performance ------------- Evolutions (5) 2500 Regions Visited (19) 3800 Robots Destroyed (211) 1055 Value Destroyed (6405) 6405 Prototype IDs (36) 720 Alien Tech Used (0) 0 Bonus (-1486) -1486 TOTAL SCORE: 12994 Bonus ------- High Alert Combat Kills 398 Follower Combat Kills 140 Met Data Miner 300 Destroyed Z-Imprinter 1000 Friendly Fire -3324 Cogmind --------- Core Integrity 718/1000 Matter 265/300 Energy 4/170 System Corruption 5% Temperature Cool (0) Movement Core (1850) Ox36 Location -5/Factory Parts ------- > --- POWER (1) -------- Micro Fission Core > --- PROPULSION (5) --- Combat Airjet Combat Airjet Combat Airjet Combat Airjet Combat Airjet > --- UTILITY (9) ------ Advanced Cooling System Large Storage Unit High-capacity Storage Unit High-capacity Storage Unit Experimental Signal Interpreter Advanced Phase Shifter Improved Powered Armor System Shield Advanced System Shield > --- WEAPON (2) ------- Long-range Proton Cannon > --- INVENTORY (26) --- Micro Fission Core Zionite Light DM Reactor Combat Airjet Gyrokinetic Inverter Advanced Power Amplifier Zionite Biocell (0) Matter Compressor (250) Zionite Metafield Generator Improved Sensor Array Experimental Sensor Array Advanced Melee Analysis Suite Advanced ECM Suite Damper Plating Damper Plating High-powered Shock Rifle Tesla Rifle Enhanced Force Rifle Neutron Cannon Neutron Cannon Phasing Sabre Peak State ------------ > --- POWER ------------ Micro Fission Core > --- PROPULSION ------- Combat Airjet Combat Airjet Combat Airjet Combat Airjet Combat Airjet > --- UTILITY ---------- Advanced Cooling System Large Storage Unit High-capacity Storage Unit High-capacity Storage Unit Experimental Signal Interpreter Advanced Phase Shifter Improved Powered Armor System Shield Advanced System Shield > --- WEAPON ----------- Long-range Proton Cannon Advanced Plasma Cannon > --- INVENTORY -------- Micro Fission Core Zionite Light DM Reactor Combat Airjet Gyrokinetic Inverter Advanced Power Amplifier Matter Compressor Zionite Metafield Generator Improved Sensor Array Experimental Sensor Array Advanced Melee Analysis Suite Advanced ECM Suite Damper Plating Damper Plating High-powered Shock Rifle Tesla Rifle Enhanced Force Rifle Neutron Cannon Neutron Cannon Phasing Sabre [Rating: 95] Favorites ----------- Power Improved Deuterium Engine Engine Improved Deuterium Engine Power Core Micro Fission Core Reactor Cold Fusion Reactor Propulsion Light Treads Treads Light Treads Leg Aluminum Leg Wheel Armored Huge Wheel Hover Unit Combat Airjet Utility High-capacity Storage Unit Device Experimental Sensor Array Storage High-capacity Storage Unit Processor Experimental Signal Interpreter Hackware Makeshift Hacking Suite Protection Hardened Heavy Armor Plating Weapon Improved EM Pulse Cannon Energy Gun Zionite Laser-M Energy Cannon Improved EM Pulse Cannon Ballistic Gun Improved Assault Rifle Launcher Improved Proton Missile Launcher Special Weapon Mining Laser Impact Weapon Power Maul Slashing Weapon Phasing Sabre Build | -11 -10 -10 -9 -9 -8 -7 -7 -7 -7 -6 -6 -6 -6 -6 -6 -5 -5 -5 -5 ------- Run | Scr Mat Min Mat Min Mat Fac Low Low Dat Pro Fac Low Low Zio Dee Pro Fac Was Fac Slots Evolved 10 | . . . 2 . 2 2 . . . . 2 . . . . . 2 . . Power . | . . . . . . . . . . . . . . . . . . . . Propulsion 3 | . . . . . 1 . . . . . . . . . . . 2 . . Utility 7 | . . . 2 . 1 2 . . . . 2 . . . . . . . . Weapon . | . . . . . . . . . . . . . . . . . . . . Parts Attached 332 | 3 7 1 41 6 26 32 6 7 1 7 48 2 9 11 31 11 41 18 24 Power 18 | . 1 . 3 . . 3 . . . . 5 . . 1 4 . 1 . . Engine 11 | . 1 . 3 . . 3 . . . . 2 . . . 2 . . . . Core 3 | . . . . . . . . . . . 1 . . 1 . . 1 . . Reactor 4 | . . . . . . . . . . . 2 . . . 2 . . . . Propulsion 40 | 2 2 . 8 1 6 2 . . . . 6 . 1 . 1 1 10 . . Treads 23 | 1 1 . 5 1 5 . . . . . 6 . 1 . 1 . 2 . . Leg . | . . . . . . . . . . . . . . . . . . . . Wheel 9 | 1 1 . 3 . 1 2 . . . . . . . . . 1 . . . Hover 8 | . . . . . . . . . . . . . . . . . 8 . . Flight . | . . . . . . . . . . . . . . . . . . . . Utility 146 | 1 3 . 9 1 6 14 4 3 . 3 14 2 5 5 17 5 15 17 22 Device 62 | . . . . . . 10 1 2 . 1 6 2 2 3 4 1 6 7 17 Storage 28 | 1 3 . 5 . 4 2 1 . . . . . 1 1 5 1 2 1 1 Processor 8 | . . . 1 . . 2 . . . . 3 . . . 1 . 1 . . Hackware 6 | . . . . . . . . . . . 2 . . . . . 4 . . Protection 42 | . . . 3 1 2 . 2 1 . 2 3 . 2 1 7 3 2 9 4 Artifact . | . . . . . . . . . . . . . . . . . . . . Weapon 128 | . 1 1 21 4 14 13 2 4 1 4 23 . 3 5 9 5 15 1 2 Energy Gun 10 | . . . 1 . . . . 1 . . . . . . 1 2 4 1 . Energy Cannon 38 | . 1 . 3 . 2 6 2 2 1 2 12 . . 1 . 1 3 . 2 Ballistic Gun 46 | . . . 11 2 7 5 . . . . 7 . . 1 5 2 6 . . Ballistic Cannon . | . . . . . . . . . . . . . . . . . . . . Launcher 17 | . . 1 2 2 2 1 . . . 2 2 . 2 1 1 . 1 . . Special Weapon 7 | . . . 4 . 3 . . . . . . . . . . . . . . Impact Weapon 6 | . . . . . . 1 . 1 . . 2 . 1 1 . . . . . Slashing Weapon 4 | . . . . . . . . . . . . . . 1 2 . 1 . . Piercing Weapon . | . . . . . . . . . . . . . . . . . . . . Special Melee Weapon . | . . . . . . . . . . . . . . . . . . . . Unidentified Prototypes 23 | . . . 4 . 1 3 . . . 1 2 . 1 . 8 . 2 . 1 Parts Lost 43 | . . . 5 . 3 . . . . . 9 . 3 . 2 4 16 . 1 Power 2 | . . . . . . . . . . . 1 . . . . . 1 . . Propulsion 10 | . . . 3 . . . . . . . 3 . 1 . 1 . 2 . . Utility 14 | . . . 1 . 1 . . . . . 2 . 1 . 1 3 5 . . Weapon 17 | . . . 1 . 2 . . . . . 3 . 1 . . 1 8 . 1 Highest Loss Streak 7 | . . . 1 . 2 . . . . . 2 . 3 . 2 2 7 . 1 Average Slot Usage (%) 89 | . 100 100 98 100 96 85 84 85 84 90 83 83 87 89 88 86 78 89 96 Engine 5 | . 14 14 10 11 9 7 7 7 7 7 4 . . . 2 . . . . Core 1 | . . . . . . . . . . . . . . 3 1 . 2 5 5 Reactor 1 | . . . . . . . . . . . 1 6 6 2 1 6 2 . . Treads 11 | . 14 14 10 11 18 8 7 7 7 7 8 20 19 20 20 6 4 . . Wheel 5 | . 14 14 11 11 9 6 7 7 7 7 5 . . . . 5 1 . . Hover 3 | . . . . . . . . . . . . . . . . . 14 29 29 Device 4 | . . . . . . 6 6 7 15 12 3 3 3 4 1 1 4 4 12 Storage 24 | . 28 28 22 22 27 23 29 30 30 30 26 26 26 26 22 26 14 11 16 Processor 6 | . . . 7 11 6 7 7 7 7 7 6 6 6 6 8 6 5 11 5 Hackware 3 | . . . . . . . . . . . 6 6 6 6 6 6 9 11 11 Protection 5 | . . . 13 11 8 7 . 1 . . 5 6 8 4 9 11 3 2 . Energy Cannon 4 | . 10 10 1 . 4 11 11 10 . 12 5 6 2 . . . . . 5 Ballistic Gun 5 | . 14 14 20 21 13 2 3 . . . 2 . . 3 3 6 3 . . Launcher 1 | . . 3 . . . . . . . . 2 . 2 4 . . . . . Naked Turns . | . . . . . . . . . . . . . . . . . . . . Heaviest Build 177 | 15 26 26 69 70 122 142 156 141 134 156 177 172 172 177 173 170 170 122 148 Greatest Support 110 | 16 20 20 20 20 40 28 28 28 28 28 63 60 60 60 63 63 110 110 110 Greatest Overweight (x) 7 | . 1 1 4 4 7 7 5 5 4 5 7 2 3 2 2 6 6 1 1 Average Overweight (x) 3 | . . 1 3 3 5 5 4 4 4 4 4 2 2 2 1 5 . . . Largest Inventory Capacity 36 | 8 12 12 18 18 26 28 34 34 34 34 34 34 34 36 36 36 36 20 26 Average Capacity 28 | 6 9 12 17 18 25 27 33 34 34 34 34 34 34 34 31 36 23 18 25 Most Carried 36 | 6 8 12 18 18 26 28 34 34 34 34 34 31 34 36 36 36 29 20 26 Average Carried 26 | 4 5 9 16 17 21 27 32 33 34 33 31 29 31 34 29 32 20 17 23 Final Capacity 36 | 8 12 12 18 18 26 28 34 34 34 34 34 34 34 36 36 36 20 18 26 Final Carried 36 | 4 8 12 18 18 26 28 33 34 34 32 28 31 34 36 36 30 19 18 24 Class Distribution -------------------- 75% | Hauler-Mutant 16% | Mutant 5% | Hacker-Mutant Dominant Class ---------------- Mutant | -10/Materials Mutant | -10/Mines Mutant | -9/Materials Mutant | -9/Mines Hauler-Mutant | -8/Materials Hauler-Mutant | -7/Factory Hauler-Mutant | -7/Lower Caves Hauler-Mutant | -7/Lower Caves Hauler-Mutant | -7/Data Miner Hauler-Mutant | -6/Proximity Caves Hauler-Mutant | -6/Factory Hauler-Mutant | -6/Lower Caves Hauler-Mutant | -6/Lower Caves Hauler-Mutant | -6/Zion Hauler-Mutant | -6/Deep Caves Hauler-Mutant | -5/Proximity Caves Hauler-Mutant | -5/Factory Hacker-Mutant | -5/Waste Hauler-Mutant | -5/Factory Resources | -11 -10 -10 -9 -9 -8 -7 -7 -7 -7 -6 -6 -6 -6 -6 -6 -5 -5 -5 -5 ----------- Run | Scr Mat Min Mat Min Mat Fac Low Low Dat Pro Fac Low Low Zio Dee Pro Fac Was Fac Matter Collected 6807 | 239 154 55 1316 203 499 356 160 144 . 202 1280 67 164 50 553 253 548 243 321 Remotely . | . . . . . . . . . . . . . . . . . . . . Salvage Created 10344 | 61 405 142 1739 315 723 448 130 . . 48 1040 . 478 . 857 253 1270 1894 541 Parts 561 | 2 22 11 135 20 54 32 6 . . 7 66 . 25 . 34 18 56 54 19 Haulers Intercepted 10 | . 1 . 6 . 2 1 . . . . . . . . . . . . . Recyclers Shooed 12 | 1 . . 1 . 1 1 . . . . 1 . . . . . 3 . 4 Parts Field Recycled 19 | . . . . . . . . . . . . . . 19 . . . . . Retrieved Matter 250 | . . . . . . . . . . . . . . 250 . . . . . Parts Self-Destructed 62 | . . . . . . . . 12 . 14 . . 15 3 . 18 . . . Prevented 20 | . . . . . . . 2 2 . . . . 13 . . 3 . . . Kills | -11 -10 -10 -9 -9 -8 -7 -7 -7 -7 -6 -6 -6 -6 -6 -6 -5 -5 -5 -5 ------- Run | Scr Mat Min Mat Min Mat Fac Low Low Dat Pro Fac Low Low Zio Dee Pro Fac Was Fac Combat Hostiles Destroyed 141 | . 5 5 33 8 12 6 1 . . 3 27 . 7 . 3 4 15 6 6 Melee 3 | . . . . . . . . . . . . . . . . . . . 3 Guns 63 | . 3 2 26 3 7 2 . . . . 3 . . . 1 4 6 6 . Cannons 19 | . 2 3 1 . 4 3 1 . . . 3 . . . . . 1 . 1 AOE 46 | . . . 6 5 1 . . . . 3 18 . 5 . 2 . 6 . . Classes Destroyed 20 | 1 4 1 4 1 1 1 1 . . . 1 . 2 . 2 . . 1 . Worker 9 | . . . 3 1 1 . . . . . 3 . . . . . 1 . . Builder 6 | . . . 1 . 1 . . . . . 1 . . . . . 2 . 1 Tunneler 6 | . . . 1 2 . 1 . . . . 2 . . . . . . . . Hauler 10 | . 1 . 6 . 2 1 . . . . . . . . . . . . . Recycler 10 | 1 1 . 2 1 1 . . . . . . . . . . . 3 . 1 Operator 4 | . 1 . 3 . . . . . . . . . . . . . . . . Watcher 15 | . 2 . 4 . 3 2 . . . . . . . . . . 2 . 2 Swarmer 33 | . . 3 13 3 5 . . . . 3 3 . 2 . . . . . 1 Grunt 48 | . 5 2 10 4 . 3 1 . . . 9 . . . 1 . 12 . 1 Brawler 1 | . . . . . . . . . . . . . 1 . . . . . . Duelist 7 | . . . . 1 . . . . . . 1 . 3 . 1 . 1 . . Protector 2 | . . . . . . . . . . . 2 . . . . . . . . Sentry 19 | . . . 10 . 5 1 . . . . 2 . 1 . . . . . . Hunter 8 | . . . . . 2 . . . . . 5 . . . . . . . 1 Programmer 14 | . . . . . . 2 . . . . 5 . . . . 2 2 . 3 Compactor 6 | . . . . . . . . . . . . . . . . . . 6 . Z-Technician 4 | . . . . . . . . . . . . . . . 4 . . . . Z-Light 2 | . . . . . . . . . . . . . . . 2 . . . . Samaritan 1 | . . . . . . . . . . . . . 1 . . . . . . Thug 4 | . . . . . . . . . . . . . . . 3 1 . . . Savage 2 | . . . . . . . . . . . . . . . 2 . . . . Butcher 1 | . . . . . . . . . . . . . . . . 1 . . . Fireman 2 | . . . . . . . . . . . . . . . 2 . . . . Mutant 1 | . . . . . . . 1 . . . . . . . . . . . . Best Kill Streak 7 | 1 4 3 6 5 4 1 1 . . 3 5 . 7 . 4 2 6 1 3 Combat Bots Only 7 | . 2 3 4 3 4 1 1 . . 3 5 . 7 . 2 2 4 1 2 Max Kills in Single Turn 4 | 1 1 1 2 2 2 1 1 . . 3 4 . 2 . 2 1 3 1 1 Gunslinging . | . . . . . . . . . . . . . . . . . . . . Exploded 3 | . . . 2 2 1 . . . . 3 3 . 2 . 2 . 2 . . Melee 1 | . . . . . . . . . . . . . . . . . . . 1 Uniques/NPCs Destroyed 1 | . . . . . . . . . . . . . . . 1 . . . . Z-Imprinter (-6/Deep Caves) Combat | -11 -10 -10 -9 -9 -8 -7 -7 -7 -7 -6 -6 -6 -6 -6 -6 -5 -5 -5 -5 -------- Run | Scr Mat Min Mat Min Mat Fac Low Low Dat Pro Fac Low Low Zio Dee Pro Fac Was Fac Damage Taken 13342 | 38 148 181 1290 154 524 562 . . . 155 2886 . 599 . 1791 1152 2760 143 959 Core 1014 | . 26 27 112 . 19 83 . . . 33 200 . 33 . 160 39 76 100 106 Absorbed by Shields . | . . . . . . . . . . . . . . . . . . . . Reduced by Siege Mode 94 | . . . . . . . . . . . . . . . . . 94 . . Core Remaining (%) 79 | 100 . 78 . 72 96 . . . . 83 . . . . . 49 . . . Volleys Fired 772 | 3 28 15 130 18 55 38 19 33 . 46 88 . 16 . 38 22 72 87 64 Largest 2 | 2 2 2 2 2 2 2 2 1 . 1 2 . 1 . 2 2 2 1 1 Hottest 159 | 60 80 80 100 46 138 138 138 69 . 65 159 . 90 . 73 146 98 98 98 Shots Fired 1121 | 6 56 30 245 29 102 63 22 35 . 50 119 . 16 . 56 44 99 86 63 Gun 684 | 6 29 15 217 22 69 25 . . . . 37 . . . 51 44 85 84 . Cannon 369 | . 27 15 13 . 28 38 22 35 . 48 63 . 6 . . . 9 2 63 Launcher 59 | . . . 8 7 3 . . . . 2 19 . 10 . 5 . 5 . . Special 9 | . . . 7 . 2 . . . . . . . . . . . . . . Kinetic 544 | 3 28 15 217 22 69 25 . . . . 37 . . . 36 40 52 . . Thermal 406 | . 27 15 20 . 2 12 16 32 . 48 41 . 6 . 15 4 42 86 40 Explosive 39 | . . . 8 7 3 . . . . 2 19 . . . . . . . . Electromagnetic 132 | 3 1 . . . 28 26 6 3 . . 22 . 10 . 5 . 5 . 23 Robot Hit Streak 39 | 3 8 4 24 12 10 11 5 1 . . 10 . 6 . 8 13 39 15 16 Robot Miss Streak 9 | 1 5 2 3 4 4 1 . 1 . . 3 . . . 9 6 6 3 2 Penetration Max . | . . . . . . . . . . . . . . . . . . . . Secondary Targets 3 | . . . . 1 1 . . . . . . . . . . 1 . . . Max Gunslinging Chain 1 | . . . . 1 1 . . . . . . . . . . 1 . . . Shots Hit Robots 681 | 4 37 15 167 19 57 40 4 1 . . 74 . 7 . 57 29 79 61 30 Core Hits 414 | 2 14 7 72 16 28 14 3 . . 6 109 . 17 . 30 11 55 17 13 Critical Hits 27 | . 2 . 3 . 2 . . . . . . . . . . 4 6 9 1 Critical Kills 9 | . . . . . . . . . . . . . . . . 2 2 4 1 Critical Parts Destroyed 13 | . 2 . 3 . 1 . . . . . . . . . . 2 4 1 . Melee Attacks 150 | . . . . . . 5 . 12 . 3 1 . 2 13 34 . 48 . 32 Impact 43 | . . . . . . 5 . 12 . 3 1 . 2 13 7 . . . . Slashing 107 | . . . . . . . . . . . . . . . 27 . 48 . 32 Piercing . | . . . . . . . . . . . . . . . . . . . . Sneak Attacks 36 | . . . . . . 1 . . . . . . 2 . 25 . 7 . 1 Combat Hostiles . | . . . . . . . . . . . . . . . . . . . . Follow-up Attacks 1 | . . . . . . . . . . . . . . . 1 . . . . Damage Inflicted 22491 | 114 531 232 2944 567 1117 997 120 25 . 176 3890 . 876 . 3639 466 3722 1720 1355 Guns 8214 | 66 267 89 2337 205 668 342 . . . . 425 . . . 414 466 1215 1720 . Cannons 3260 | . 264 143 142 . 343 483 120 25 . . 819 . . . . . 107 . 814 Explosions 6024 | 48 . . 465 362 106 . . . . 176 2460 . 728 . 376 . 1255 . 48 Melee 4761 | . . . . . . 126 . . . . . . 148 . 2849 . 1145 . 493 Ramming 232 | . . . . . . 46 . . . . 186 . . . . . . . . Kinetic 6041 | 39 249 89 2337 205 668 342 . . . . 425 . . . 414 384 889 . . Thermal 3696 | 48 264 143 142 . . . . . . . 276 . 158 . 149 82 433 1720 281 Explosive 4422 | . . . 465 362 106 . . . . 176 2460 . . . . . 853 . . Electromagnetic 3339 | 27 18 . . . 343 483 120 25 . . 543 . 570 . 227 . 402 . 581 Impact 822 | . . . . . . 126 . . . . . . 148 . 548 . . . . Slashing 3939 | . . . . . . . . . . . . . . . 2301 . 1145 . 493 Piercing . | . . . . . . . . . . . . . . . . . . . . Highest Corruption 12 | . . . 1 1 . 7 7 7 7 7 3 3 1 . . 10 5 12 11 Average Corruption 4 | . . . 1 1 . 3 7 7 7 7 1 2 1 . . 9 3 10 8 Corruption Purged 10 | . . . . . . . . . . . . 2 1 . . . . 1 6 Effects 277 | . . . 7 1 . 18 23 46 4 43 22 9 . . . 5 14 43 42 Message Errors 56 | . . . 3 . . 4 3 10 1 11 5 2 . . . 1 4 4 8 Matter Fused 61 | . . . . . . 4 9 9 2 13 2 2 . . . . 4 9 7 Heat Flow Errors 32 | . . . . . . 3 5 7 . 6 3 . . . . 1 . 3 4 Energy Discharges 22 | . . . 1 . . 3 . 5 1 1 2 2 . . . 1 1 1 4 Data Loss (minor) 36 | . . . 1 1 . 2 . 4 . 4 5 3 . . . 2 1 6 7 Data Loss (major) 8 | . . . . . . . 1 2 . 3 . . . . . . . 2 . Misfires 13 | . . . . . . . 2 2 . 4 . . . . . . 2 3 . Alerts 1 | . . . . . . . . . . . . . . . . . . . 1 Misdirections 4 | . . . . . . . . . . . . . . . . . . 3 1 Targeting Errors 35 | . . . 2 . . 1 1 7 . 1 5 . . . . . 1 8 9 Weapon Failures 9 | . . . . . . 1 2 . . . . . . . . . 1 4 1 Overload Shots . | . . . . . . . . . . . . . . . . . . . . Overflow Damage 1814 | 8 6 . 78 . 13 42 . . . . 30 . 3 . 976 . 510 . 148 Projectiles 112 | . 6 . . . 13 42 . . . . 5 . . . . . . . 46 Explosions 203 | 8 . . 78 . . . . . . . 14 . 3 . 13 . 74 . 13 Melee 1499 | . . . . . . . . . . . 11 . . . 963 . 436 . 89 Knockbacks 3 | . . . . . . . . . . . 1 . . . 2 . . . . Impact 3 | . . . . . . . . . . . 1 . . . 2 . . . . Kinetic . | . . . . . . . . . . . . . . . . . . . . Secondary . | . . . . . . . . . . . . . . . . . . . . Self-Inflicted Damage 594 | 39 . . . 57 . . . . . 29 199 . 80 . 27 . 131 . 32 Shots 28 | 1 . . . 2 . . . . . 2 9 . 4 . 3 . 6 . 1 Rammed 11 | . . . . . . 5 . . . . 6 . . . . . . . . Targets Rammed 13 | . . . . . . 5 . . . . 8 . . . . . . . . Kicked . | . . . . . . . . . . . . . . . . . . . . Crushed 2 | . . . . . . . . . . . 2 . . . . . . . . Highest Temperature 646 | 32 144 162 126 9 234 252 261 255 . 266 436 . 114 . 114 125 128 646 498 Average Temperature 84 | 25 60 73 30 4 87 88 60 88 . 70 88 . 56 . 39 42 35 162 101 Received Heat Transfer 2790 | . 84 51 318 45 84 51 . . . . 561 . 63 . 477 90 828 . 138 Effects 36 | . . . . . . . . . . 1 3 . . . . . . 20 12 Shutdowns 6 | . . . . . . . . . . . 1 . . . . . . 3 2 Energy Bleed 6 | . . . . . . . . . . 1 . . . . . . . 4 1 Interference 8 | . . . . . . . . . . . 2 . . . . . . 6 . Matter Decay 1 | . . . . . . . . . . . . . . . . . . . 1 Damage (minor) 5 | . . . . . . . . . . . . . . . . . . 4 1 Damage (major) 9 | . . . . . . . . . . . . . . . . . . 2 7 Damage (core) 1 | . . . . . . . . . . . . . . . . . . 1 . Siege Activations 4 | . . . . . . . . . . . . . . . . . 4 . . Total Turns 78 | . . . . . . . . . . . . . . . . . 78 . . Longest Duration 32 | . . . . . . . . . . . . . . . . . 32 . . Robots Corrupted 10 | . . . . . . 1 . . . . 3 . 2 . . . 2 . 2 Combat Hostiles 10 | . . . . . . 1 . . . . 3 . 2 . . . 2 . 2 Parts Fried 40 | . . . . . 3 7 2 . . . 8 . 3 . 12 . 3 . 2 Impact Corruptions 7 | . . . . . . . . . . . 2 . . . 5 . . . . Robots Melted . | . . . . . . . . . . . . . . . . . . . . Combat Hostiles . | . . . . . . . . . . . . . . . . . . . . Parts Melted . | . . . . . . . . . . . . . . . . . . . . Heat Transferred 5574 | 50 555 296 296 . . . . . . . 333 . 250 . 62 74 594 2664 400 Parts Sabotaged . | . . . . . . . . . . . . . . . . . . . . Parts Stolen . | . . . . . . . . . . . . . . . . . . . . Parts Stripped . | . . . . . . . . . . . . . . . . . . . . Power Chain Reactions 5 | 1 . . . . . . . . . . . . 2 . 1 . . . 1 Missiles Intercepted . | . . . . . . . . . . . . . . . . . . . . Alert | -11 -10 -10 -9 -9 -8 -7 -7 -7 -7 -6 -6 -6 -6 -6 -6 -5 -5 -5 -5 ------- Run | Scr Mat Min Mat Min Mat Fac Low Low Dat Pro Fac Low Low Zio Dee Pro Fac Was Fac Peak Influence 937 | 5 181 205 380 318 279 163 . . . . 937 . . . . . 486 68 172 Initial 148 | . 3 70 1 148 66 106 . . . . 15 . . . . . 31 64 . Average 184 | 3 69 159 170 177 151 50 . . . . 392 . . . . . 252 44 54 Maximum Alert Level 3 | . . 1 1 1 1 . . . . . 3 . . . . . 2 . . Low Security (%) 67 | 100 100 33 66 76 70 100 . . . . 41 . . . . . 32 100 100 Level 1 20 | . . 66 33 23 29 . . . . . 6 . . . . . 51 . . Level 2 7 | . . . . . . . . . . . 29 . . . . . 16 . . Level 3 4 | . . . . . . . . . . . 22 . . . . . . . . Level 4 . | . . . . . . . . . . . . . . . . . . . . Level 5 . | . . . . . . . . . . . . . . . . . . . . High Security . | . . . . . . . . . . . . . . . . . . . . Max Security . | . . . . . . . . . . . . . . . . . . . . Squads Dispatched 36 | . 1 . 2 1 1 6 . . . . 16 . 1 . . . 6 . 2 Investigation 10 | . . . 1 1 1 3 . . . . 2 . . . . . 2 . . Extermination 11 | . . . . . . 3 . . . . 5 . . . . . 1 . 2 Reinforcement 8 | . 1 . 1 . . . . . . . 3 . . . . . 3 . . Assault 4 | . . . . . . . . . . . 3 . 1 . . . . . . Garrison 3 | . . . . . . . . . . . 3 . . . . . . . . Intercept . | . . . . . . . . . . . . . . . . . . . . Construction Impeded 3 | . . . . . . . . . . . 2 . . . . . 1 . . Haulers Reinforced 1 | . . . . . . . . . . . . . . . . . 1 . . Stealth | -11 -10 -10 -9 -9 -8 -7 -7 -7 -7 -6 -6 -6 -6 -6 -6 -5 -5 -5 -5 --------- Run | Scr Mat Min Mat Min Mat Fac Low Low Dat Pro Fac Low Low Zio Dee Pro Fac Was Fac Distress Signals 5 | . 1 . 1 . . . . . . . 1 . . . . . 1 . 1 Communications Jammed . | . . . . . . . . . . . . . . . . . . . . Distress Signals . | . . . . . . . . . . . . . . . . . . . . Times Spotted 239 | . 11 5 46 9 20 11 1 2 . 4 38 . 12 . 4 4 50 6 16 Peak Tracking Total 10 | . 3 3 5 3 4 3 1 3 . 3 6 . 10 . 3 2 8 3 5 Tactical Retreats 26 | . . . 2 . 1 2 . 2 . . 3 . 2 . . . 13 . 1 Traps | -11 -10 -10 -9 -9 -8 -7 -7 -7 -7 -6 -6 -6 -6 -6 -6 -5 -5 -5 -5 ------- Run | Scr Mat Min Mat Min Mat Fac Low Low Dat Pro Fac Low Low Zio Dee Pro Fac Was Fac Traps Triggered 7 | . . . . . 1 5 . . . . . . . . . . 1 . . Indirectly . | . . . . . . . . . . . . . . . . . . . . Trap Hack Attempts . | . . . . . . . . . . . . . . . . . . . . Triggered . | . . . . . . . . . . . . . . . . . . . . Disarmed . | . . . . . . . . . . . . . . . . . . . . Reprogrammed . | . . . . . . . . . . . . . . . . . . . . Reused . | . . . . . . . . . . . . . . . . . . . . Traps Extracted . | . . . . . . . . . . . . . . . . . . . . Installed . | . . . . . . . . . . . . . . . . . . . . Triggered 3 | . . . . . . 1 . 2 . . . . . . . . . . . Machines | -11 -10 -10 -9 -9 -8 -7 -7 -7 -7 -6 -6 -6 -6 -6 -6 -5 -5 -5 -5 ---------- Run | Scr Mat Min Mat Min Mat Fac Low Low Dat Pro Fac Low Low Zio Dee Pro Fac Was Fac Machines Disabled 13 | . . . 1 1 . 1 . 1 . . 1 . 2 . 1 . 4 . 1 Max in Single Turn 2 | . . . 1 1 . 1 . 1 . . 1 . 1 . 1 . 2 . 1 Garrison Access 2 | . . . . . . . . . . . 1 . . . . . 1 . . Machines Sabotaged . | . . . . . . . . . . . . . . . . . . . . Garrisons Compromised . | . . . . . . . . . . . . . . . . . . . . Overloaded Fab Kills . | . . . . . . . . . . . . . . . . . . . . Fab Network Shutdowns 1 | . . . . . . . . . . . 1 . . . . . . . . Hacking | -11 -10 -10 -9 -9 -8 -7 -7 -7 -7 -6 -6 -6 -6 -6 -6 -5 -5 -5 -5 --------- Run | Scr Mat Min Mat Min Mat Fac Low Low Dat Pro Fac Low Low Zio Dee Pro Fac Was Fac Machines Accessed 61 | . 1 . 13 1 3 7 1 3 4 . 12 2 1 . . . 12 . 1 Terminals 33 | . 1 . 10 . 3 3 1 . . . 8 . . . . . 7 . . Fabricators 6 | . . . . . . 1 . . . . 1 . . . . . 3 . 1 Repair Stations 3 | . . . 1 . . 1 . . . . 1 . . . . . . . . Recycling Units . | . . . . . . . . . . . . . . . . . . . . Scanalyzers 3 | . . . 2 . . 1 . . . . . . . . . . . . . Garrison Access 5 | . . . . . . 1 . . . . 2 . . . . . 2 . . Total Hacks 165 | . 2 . 40 1 11 12 1 7 21 . 27 2 1 . . . 36 . 4 Successful 92 | . 2 . 16 1 6 4 1 7 21 . 12 2 1 . . . 16 . 3 Failed 73 | . . . 24 . 5 8 . . . . 15 . . . . . 20 . 1 Catastrophic 14 | . . . 3 . . 4 . . . . 2 . . . . . 5 . . Database Lockouts . | . . . . . . . . . . . . . . . . . . . . Manual 59 | . 2 . 21 . 2 . . . . . 11 . . . . . 21 . 2 Terminals 91 | . 2 . 28 . 11 5 1 . . . 19 . . . . . 25 . . Fabricators 16 | . . . . . . 2 . . . . 2 . . . . . 8 . 4 Repair Stations 7 | . . . 4 . . 1 . . . . 2 . . . . . . . . Recycling Units . | . . . . . . . . . . . . . . . . . . . . Scanalyzers 10 | . . . 8 . . 2 . . . . . . . . . . . . . Garrison Access 9 | . . . . . . 2 . . . . 4 . . . . . 3 . . Terminal Hacks 57 | . 2 . 5 1 4 2 1 7 21 . 5 2 1 . . . 6 . . Record 17 | . . . . . . . 1 5 11 . . . . . . . . . . Part Schematic 4 | . . . . . . . . . 3 . . . . . . . 1 . . Robot Schematic 4 | . . . . . . . . . 4 . . . . . . . . . . Robot Analysis 2 | . 2 . . . . . . . . . . . . . . . . . . Prototype ID Bank 4 | . . . . . . 1 . . 3 . . . . . . . . . . Open Door 6 | . . . . 1 . . . 2 . . . 2 1 . . . . . . Level Access Points 1 | . . . . . . . . . . . . . . . . . 1 . . Branch Access Points 5 | . . . 1 . 1 1 . . . . 1 . . . . . 1 . . Terminal Index 2 | . . . . . 1 . . . . . 1 . . . . . . . . Fabricator Index 1 | . . . . . . . . . . . 1 . . . . . . . . Scanalyzer Index 1 | . . . 1 . . . . . . . . . . . . . . . . Unreport Threat 4 | . . . 1 . . . . . . . 1 . . . . . 2 . . Locate Traps 2 | . . . 2 . . . . . . . . . . . . . . . . Recall Investigation 1 | . . . . . 1 . . . . . . . . . . . . . . Hauler Manifests 1 | . . . . . 1 . . . . . . . . . . . . . . Zone Layout 2 | . . . . . . . . . . . 1 . . . . . 1 . . Fabricator Hacks 12 | . . . . . . 2 . . . . 2 . . . . . 6 . 2 Load Schematic 6 | . . . . . . 1 . . . . 1 . . . . . 3 . 1 Build 6 | . . . . . . 1 . . . . 1 . . . . . 3 . 1 Repair Station Hacks 4 | . . . 2 . . . . . . . 2 . . . . . . . . Scan Component 2 | . . . 1 . . . . . . . 1 . . . . . . . . Repair 2 | . . . 1 . . . . . . . 1 . . . . . . . . Recycling Unit Hacks . | . . . . . . . . . . . . . . . . . . . . Scanalyzer 7 | . . . 7 . . . . . . . . . . . . . . . . Insert Component 4 | . . . 4 . . . . . . . . . . . . . . . . Analyze 3 | . . . 3 . . . . . . . . . . . . . . . . Garrison Access Hacks 2 | . . . . . . . . . . . 1 . . . . . 1 . . Seal Access 2 | . . . . . . . . . . . 1 . . . . . 1 . . Unauthorized Hacks 10 | . . . 2 . 2 . . . . . 2 . . . . . 3 . 1 Terminals 9 | . . . 2 . 2 . . . . . 2 . . . . . 3 . . Track 1 | . . . . . . . . . . . 1 . . . . . . . . Botnet 5 | . . . 1 . 1 . . . . . 1 . . . . . 2 . . Operators 3 | . . . 1 . 1 . . . . . . . . . . . 1 . . Fabricators 1 | . . . . . . . . . . . . . . . . . . . 1 Siphon 1 | . . . . . . . . . . . . . . . . . . . 1 Repair Stations . | . . . . . . . . . . . . . . . . . . . . Recycling Units . | . . . . . . . . . . . . . . . . . . . . Scanalyzers . | . . . . . . . . . . . . . . . . . . . . Garrison Access . | . . . . . . . . . . . . . . . . . . . . Data Cores Recovered 2 | . . . 2 . . . . . . . . . . . . . . . . Used . | . . . . . . . . . . . . . . . . . . . . Hacking Detections 43 | . 1 . 11 . 3 6 1 . . . 11 . . . . . 10 . . Full Trace Events 7 | . . . 1 . 1 1 . . . . 2 . . . . . 2 . . Feedback Events 3 | . . . 1 . . . . . . . . . . . . . 2 . . Corruption 2 | . . . 1 . . . . . . . . . . . . . 1 . . Hackware Fried 1 | . . . . . . . . . . . . . . . . . 1 . . Feedback Blocked . | . . . . . . . . . . . . . . . . . . . . Robot Schematics Acquired 4 | . . . . . . . . . 4 . . . . . . . . . . Robots Built . | . . . . . . . . . . . . . . . . . . . . Matter . | . . . . . . . . . . . . . . . . . . . . Time . | . . . . . . . . . . . . . . . . . . . . Total Robot Build Rating . | . . . . . . . . . . . . . . . . . . . . Part Schematics Acquired 7 | . . . 3 . . . . . 3 . . . . . . . 1 . . Parts Built 7 | . . . . . . 2 . . . . 1 . . . . . 3 . 1 Matter 1208 | . . . . . . 190 . . . . 384 . . . . . 475 . 159 Time 576 | . . . . . . 95 . . . . 204 . . . . . 171 . 106 Total Part Build Rating 39 | . . . . . . 10 . . . . 8 . . . . . 15 . 6 Parts Repaired 2 | . . . 1 . . . . . . . 1 . . . . . . . . Time 124 | . . . 80 . . . . . . . 44 . . . . . . . . Parts Recycled . | . . . . . . . . . . . . . . . . . . . . Recycled Matter . | . . . . . . . . . . . . . . . . . . . . Retrieved Matter . | . . . . . . . . . . . . . . . . . . . . Retrieved Components . | . . . . . . . . . . . . . . . . . . . . Parts Scanalyzed 3 | . . . 3 . . . . . . . . . . . . . . . . Part Schematics Acquired 3 | . . . 3 . . . . . . . . . . . . . . . . Parts Damaged . | . . . . . . . . . . . . . . . . . . . . Bothacking | -11 -10 -10 -9 -9 -8 -7 -7 -7 -7 -6 -6 -6 -6 -6 -6 -5 -5 -5 -5 ------------ Run | Scr Mat Min Mat Min Mat Fac Low Low Dat Pro Fac Low Low Zio Dee Pro Fac Was Fac Used RIF Installer . | . . . . . . . . . . . . . . . . . . . . Robots Hacked . | . . . . . . . . . . . . . . . . . . . . Non-combat . | . . . . . . . . . . . . . . . . . . . . Combat . | . . . . . . . . . . . . . . . . . . . . Robot Hacks Applied . | . . . . . . . . . . . . . . . . . . . . Relay Couplers Released . | . . . . . . . . . . . . . . . . . . . . Robots Rewired 2 | . . . . . . . . . . . . . 2 . . . . . . Allies Hacked . | . . . . . . . . . . . . . . . . . . . . Hacks Repelled . | . . . . . . . . . . . . . . . . . . . . Allies | -11 -10 -10 -9 -9 -8 -7 -7 -7 -7 -6 -6 -6 -6 -6 -6 -5 -5 -5 -5 -------- Run | Scr Mat Min Mat Min Mat Fac Low Low Dat Pro Fac Low Low Zio Dee Pro Fac Was Fac Total Allies 12 | . . . . . . . . 2 . 1 . . 2 7 . . . . . Largest Group 9 | . . . . . . . . 2 . 1 . . 2 9 9 . . . . Highest-Rated Group 245 | . . . . . . . . 40 . 94 . . 59 245 245 . . . . Highest-Rated Ally 94 | . . . . . . . . 20 . 94 . . 30 31 31 . . . . Total Orders . | . . . . . . . . . . . . . . . . . . . . Ally Attacks 43 | . . . . . . . . 8 . 10 . . 6 . 19 . . . . Total Damage 859 | . . . . . . . . 138 . 237 . . 152 . 332 . . . . Kills 10 | . . . . . . . . . . 4 . . 3 . 3 . . . . Allies Corrupted 2 | . . . . . . . . . . . . . . . 2 . . . . Allies Melted 1 | . . . . . . . . 1 . . . . . . . . . . . Intel | -11 -10 -10 -9 -9 -8 -7 -7 -7 -7 -6 -6 -6 -6 -6 -6 -5 -5 -5 -5 ------- Run | Scr Mat Min Mat Min Mat Fac Low Low Dat Pro Fac Low Low Zio Dee Pro Fac Was Fac Robot Analysis Total 2 | . 2 . . . . . . . . . . . . . . . . . . Derelict Logs Recovered 9 | . . 1 . 1 . . 3 1 . . . 1 . . . 2 . . . Drone Launches . | . . . . . . . . . . . . . . . . . . . . Drone Recoveries . | . . . . . . . . . . . . . . . . . . . . Exploration | -11 -10 -10 -9 -9 -8 -7 -7 -7 -7 -6 -6 -6 -6 -6 -6 -5 -5 -5 -5 ------------- Run | Scr Mat Min Mat Min Mat Fac Low Low Dat Pro Fac Low Low Zio Dee Pro Fac Was Fac Turns Passed 22527 | 28 283 470 2319 759 1280 2029 785 1369 135 1333 2411 648 747 2304 1871 564 1618 613 961 Spaces Moved 12092 | 14 143 248 1147 464 604 1092 504 753 96 742 1141 322 340 1117 809 316 1206 242 792 Core . | . . . . . . . . . . . . . . . . . . . . Treads 3391 | . 8 161 202 18 71 1 . . . . 201 322 340 1117 809 10 131 . . Legs . | . . . . . . . . . . . . . . . . . . . . Wheels 6743 | 14 135 87 945 446 533 1091 504 753 96 742 940 . . . . 306 151 . . Hover 1958 | . . . . . . . . . . . . . . . . . 924 242 792 Flight . | . . . . . . . . . . . . . . . . . . . . Fastest Speed 62 | 100 100 110 110 140 150 140 140 140 140 140 150 200 200 200 180 150 62 64 64 Average Speed 147 | 100 110 155 149 143 167 150 140 142 140 141 162 200 200 200 194 154 87 73 65 Slowest Speed 300 | 100 180 180 220 220 260 280 150 150 140 150 300 200 220 200 200 280 180 134 134 Overloaded Moves . | . . . . . . . . . . . . . . . . . . . . Propulsion Burnouts . | . . . . . . . . . . . . . . . . . . . . Robots Hopped . | . . . . . . . . . . . . . . . . . . . . Cave-ins Triggered . | . . . . . . . . . . . . . . . . . . . . Exploration Rate (%) 53 | 2 33 49 84 99 47 33 67 68 69 83 26 62 50 84 53 52 26 77 14 Regions Visited 19 Branch Regions 11 Pre-discovered Areas 4 | . . . . . . . 1 . 1 . . . . 2 . . . . . Known Exits Taken 13 | . . . 1 1 . 1 1 1 1 1 1 1 1 1 1 1 . . . Unknown Exits Taken 4 | 1 1 1 . . 1 . . . . . . . . . . . . . . Scrap Searched 15 | . . . . 2 . . 3 2 . 1 . 2 . 3 . 2 . . . Spaces Dug 187 | . . . 5 . 2 7 4 8 . 40 24 . 2 1 14 . 43 2 35 Terrain Destroyed 763 | . . . 39 64 33 7 10 12 . 84 316 . 11 1 32 1 101 2 50 Melee 57 | . . . . . . 4 . 2 . 3 1 . . 1 . . 31 . 15 Projectile 175 | . . . 6 . 2 3 10 10 . 33 31 . 6 . 18 1 20 2 33 AOE 531 | . . . 33 64 31 . . . . 48 284 . 5 . 14 . 50 . 2 Terrain Rammed . | . . . . . . . . . . . . . . . . . . . . Walls Destroyed . | . . . . . . . . . . . . . . . . . . . . Machines Disabled . | . . . . . . . . . . . . . . . . . . . . Actions | -11 -10 -10 -9 -9 -8 -7 -7 -7 -7 -6 -6 -6 -6 -6 -6 -5 -5 -5 -5 --------- Run | Scr Mat Min Mat Min Mat Fac Low Low Dat Pro Fac Low Low Zio Dee Pro Fac Was Fac Total 15486 | 23 212 302 1501 529 766 1395 563 997 97 973 1551 326 384 1169 1011 355 1603 595 1134 Wait 1694 | . 20 34 130 35 48 182 20 184 . 172 226 . 2 15 28 1 204 221 172 Move 12075 | 13 142 247 1146 463 603 1091 503 752 95 741 1141 321 339 1116 808 315 1206 241 792 Hop . | . . . . . . . . . . . . . . . . . . . . Pick Up 192 | 1 7 4 24 3 16 18 10 3 . . 13 2 3 5 41 1 15 3 23 Fast Attach 86 | 1 3 . 10 . 2 7 . 4 1 1 14 2 3 2 14 1 9 8 4 Attach 95 | 2 . . 6 . 6 3 4 1 . 2 11 . 3 2 6 4 21 7 17 Detach 46 | . . . 1 . 2 1 . . . 1 8 1 3 2 7 . 5 8 7 Swap 152 | . 4 1 25 6 19 22 2 2 . 4 23 . 3 7 11 6 11 3 3 Drop 200 | 3 8 . 29 4 15 23 5 6 1 3 19 . . 7 26 3 12 16 20 Fire 772 | 3 28 15 130 18 55 38 19 33 . 46 88 . 16 . 38 22 72 87 64 Melee 148 | . . . . . . 5 . 12 . 3 1 . 2 13 32 . 48 . 32 Ram 2 | . . . . . . . . . . . 1 . . . . . . 1 . Kick . | . . . . . . . . . . . . . . . . . . . . Crush 11 | . . . . . . 5 . . . . 6 . . . . . . . . Escape Stasis . | . . . . . . . . . . . . . . . . . . . . Rewire 13 | . . 1 . . . . . . . . . . 10 . . 2 . . . Trap . | . . . . . . . . . . . . . . . . . . . . Miscellaneous . | . . . . . . . . . . . . . . . . . . . . Route ------- -11/Scrapyard -10/Materials -10/Mines (discovered 2 exits: *Mat / Exi) -9/Materials (discovered 5 exits: *Mat x3 / *Min x2) -9/Mines (discovered 2 exits: *Mat x2) -8/Materials -7/Factory (discovered 5 exits: *Fac / Sto x2 / *Low x2) -7/Lower Caves -7/Lower Caves (discovered 2 exits: *Fac / *Dat) -7/Data Miner -6/Proximity Caves -6/Factory (discovered 4 exits: Fac x2 / *Low x2) -6/Lower Caves -6/Lower Caves -6/Zion (discovered 2 exits: *Dee / [*Pro]) -6/Deep Caves -5/Proximity Caves -5/Factory (discovered 6 exits: Fac x4 / *Upp x2) -5/Waste -5/Factory History --------- Turn | Location | Event 13 | -11/Scrapyard | Discovered new exit (range 3) 29 | -11/Scrapyard | Entered Materials 215 | -10/Materials | Discovered new exit (range 13) 308 | -10/Materials | Build established: Mutant 312 | -10/Materials | Entered Mines 363 | -10/Mines | Identified exit to Exiles 574 | -10/Mines | Discovered new exit (range 9) 610 | -10/Mines | Assembled infested the area 694 | -10/Mines | Found a damaged Exp. Sensor Array with a note attached 696 | -10/Mines | Found Prototype Device 782 | -10/Mines | Entered Materials 782 | -9/Materials | Evolved 2 slots: Utility x2 871 | -9/Materials | Identified Exp. Sensor Array 1124 | -9/Materials | Discovered new exit (range 14) 1312 | -9/Materials | Discovered new exit (range 14) 1684 | -9/Materials | Discovered new exit (range 18) 1801 | -9/Materials | Repaired Exp. Sensor Array 2112 | -9/Materials | Discovered new exit (range 18) 2604 | -9/Materials | Discovered new exit (range 20) 2927 | -9/Materials | Identified exit to Mines 3101 | -9/Materials | Entered Mines 3107 | -9/Mines | Met a Derelict bent on vengeance 3108 | -9/Mines | Received a Rocket Launcher from a helpful Derelict 3151 | -9/Mines | Identified exit to Materials 3166 | -9/Mines | Discovered exit to Materials (range 11) 3203 | -9/Mines | Met a Derelict shopkeep closing up shop 3860 | -9/Mines | Entered Materials 3860 | -8/Materials | Evolved 2 slots: Propulsion x1, Utility x1 4151 | -8/Materials | Build established: Hauler-Mutant 4689 | -8/Materials | Discovered new exit (range 4) 5140 | -8/Materials | Entered Factory 5140 | -7/Factory | Evolved 2 slots: Utility x2 5872 | -7/Factory | Identified exit to Storage 5872 | -7/Factory | Identified exit to Lower Caves 5926 | -7/Factory | Discovered new exit (range 14) 6973 | -7/Factory | Found Prototype Launcher 6973 | -7/Factory | Identified Rocket Array 6998 | -7/Factory | Fabricated Cmb. Airjet? 7169 | -7/Factory | Entered Lower Caves 7780 | -7/Lower Caves | Learned location of 1 exit from Factory 7841 | -7/Lower Caves | Learned Factory emergency access door positions 7844 | -7/Lower Caves | Encountered a Warlord checkpoint 7877 | -7/Lower Caves | Discovered new exit (range 5) 7884 | -7/Lower Caves | Identified exit to Lower Caves 7954 | -7/Lower Caves | Entered another Lower Caves area 8046 | -7/Lower Caves | Discovered new exit (range 9) 8053 | -7/Lower Caves | Encountered a Warlord checkpoint 8059 | -7/Lower Caves | Identified exit to Factory 8071 | -7/Lower Caves | Identified exit to Data Miner 8455 | -7/Lower Caves | A Commander dispatched an escort 8483 | -7/Lower Caves | Learned 8 Factory zone layouts 8483 | -7/Lower Caves | Learned Factory trap positions 8483 | -7/Lower Caves | Learned Factory emergency access door positions 8483 | -7/Lower Caves | Learned Factory stockpile data 8483 | -7/Lower Caves | Learned Extension terminal intel 9323 | -7/Lower Caves | Entered Data Miner 9324 | -7/Data Miner | Discovered new exit (range 6) 9351 | -7/Data Miner | Met Data Miner 9377 | -7/Data Miner | Learned location of Section 7 (-3) 9377 | -7/Data Miner | Acquired the access code to Warlord's prototype stash 9401 | -7/Data Miner | Received God Mode back door access code from Data Miner 9457 | -7/Data Miner | Identified exit to Proximity Caves 9458 | -7/Data Miner | Entered Proximity Caves 10244 | -6/Proximity Caves | Escorted by Enhanced Grunt 10586 | -6/Proximity Caves | Found Prototype Device 10586 | -6/Proximity Caves | Identified Exp. Thermal Shield 10629 | -6/Proximity Caves | Spotted B-75 Beast 10776 | -6/Proximity Caves | Discovered exit to Factory (range 11) 10791 | -6/Proximity Caves | Entered Factory 10791 | -6/Factory | Evolved 2 slots: Utility x2 10792 | -6/Factory | Identified exit to Factory 10794 | -6/Factory | Loaded intel: 85 trap records 11213 | -6/Factory | Repaired Hrd. Heavy Armor Plating 11784 | -6/Factory | Local fabrication network quarantined 11868 | -6/Factory | Fabricated Exp. Transmission Jammer? 12002 | -6/Factory | Found Hvy. Reactive Plating 12150 | -6/Factory | Incoming investigation squad redirected 12191 | -6/Factory | First assault squad dispatched 12218 | -6/Factory | Garrison activated, responded to threat 12545 | -6/Factory | Spotted B-75 Beast 12568 | -6/Factory | Incoming assault squad redirected 12868 | -6/Factory | Found Exp. Signal Interpreter 13017 | -6/Factory | Identified exit to Lower Caves 13202 | -6/Factory | Entered Lower Caves 13706 | -6/Lower Caves | Learned location of 1 exit from Factory 13800 | -6/Lower Caves | Discovered new exit (range 8) 13814 | -6/Lower Caves | Identified exit to Lower Caves 13850 | -6/Lower Caves | Entered another Lower Caves area 14205 | -6/Lower Caves | Attracted the attention of an 0b10 outpost 14249 | -6/Lower Caves | Destroyed 7 combat bots 14249 | -6/Lower Caves | Lost 3 parts (1n1u1w) 14511 | -6/Lower Caves | Discovered new exit (range 11) 14529 | -6/Lower Caves | Identified exit to Zion 14564 | -6/Lower Caves | Found Prototype Device 14564 | -6/Lower Caves | Identified Heart of Steel 14597 | -6/Lower Caves | Entered Zion 14597 | -6/Zion | Accompanied by 2 allies 14655 | -6/Zion | Discovered new exit (range 16) 14691 | -6/Zion | Gained Derelict followers 15100 | -6/Zion | Learned location of Warlord (-5) 15100 | -6/Zion | Learned Factory fabricator intel 15386 | -6/Zion | Visited the Megawrench Repair Shop 15393 | -6/Zion | Megawrench repaired 13 parts 15527 | -6/Zion | Gained Derelict followers 16880 | -6/Zion | Discovered new exit (range 3) 16884 | -6/Zion | Identified exit to Deep Caves 16901 | -6/Zion | Entered Deep Caves 16901 | -6/Deep Caves | Accompanied by 9 allies 17584 | -6/Deep Caves | Build established: Scavenger-Mutant 17599 | -6/Deep Caves | Attacked by Z-Imprinter 17671 | -6/Deep Caves | Destroyed Z-Imprinter 17710 | -6/Deep Caves | Found Prototype Device 17710 | -6/Deep Caves | Identified Zio. Metafield Generator 17713 | -6/Deep Caves | Found Prototype Protection 17713 | -6/Deep Caves | Identified Zio. Weapon Casing 17943 | -6/Deep Caves | Found Zio. Weapon Casing 18053 | -6/Deep Caves | Z-Facility disabled 18072 | -6/Deep Caves | Build established: Hauler-Mutant 18164 | -6/Deep Caves | Found Prototype Protection 18164 | -6/Deep Caves | Identified Zio. Heavy Carapace 18254 | -6/Deep Caves | Found Zio. Heavy Carapace 18756 | -6/Deep Caves | Discovered new exit (range 9) 18770 | -6/Deep Caves | Identified exit to Proximity Caves 18772 | -6/Deep Caves | Entered Proximity Caves 18984 | -5/Proximity Caves | Learned Factory security intel 19184 | -5/Proximity Caves | Core integrity fell below 50% 19209 | -5/Proximity Caves | System corruption reached 10% 19239 | -5/Proximity Caves | Learned Factory terminal intel 19327 | -5/Proximity Caves | Discovered exit to Factory (range 5) 19336 | -5/Proximity Caves | Entered Factory 19336 | -5/Factory | Evolved 2 slots: Propulsion x2 19337 | -5/Factory | Identified exit to Factory 19340 | -5/Factory | Loaded intel: 20 terminal locations 19341 | -5/Factory | Loaded intel: 6 fabricator locations 19641 | -5/Factory | Build established: Hacker-Mutant 19939 | -5/Factory | Mak. Hacking Suite fried by hacking feedback 19961 | -5/Factory | Incoming investigation squad redirected 19968 | -5/Factory | Identified exit to Upper Caves 20049 | -5/Factory | Lost 7 parts (1p2n2u2w) 20223 | -5/Factory | Build established: Hauler-Mutant 20310 | -5/Factory | Fabricated Exp. Sensor Array (x1) 20755 | -5/Factory | Fabricated Cmb. Airjet? 20954 | -5/Factory | Manually triggered Chute Trap 20954 | -5/Factory | Sucked down chute 20954 | -5/Factory | Entered Waste 20966 | -5/Waste | Spotted C-40 Crusher 20969 | -5/Waste | EMP discharged 20969 | -5/Waste | System corruption reached 10% 21006 | -5/Waste | Destroyed C-40 Crusher 21015 | -5/Waste | Spotted C-40 Crusher 21016 | -5/Waste | Found Unknown Protection 21041 | -5/Waste | Destroyed C-40 Crusher 21053 | -5/Waste | Spotted C-40 Crusher 21063 | -5/Waste | Identified Damper Plating 21067 | -5/Waste | Spotted C-40 Crusher 21069 | -5/Waste | EMP discharged 21167 | -5/Waste | Spotted C-40 Crusher 21169 | -5/Waste | EMP discharged 21240 | -5/Waste | Destroyed C-40 Crusher 21249 | -5/Waste | Build established: Hacker-Mutant 21269 | -5/Waste | EMP discharged 21279 | -5/Waste | Destroyed C-40 Crusher 21327 | -5/Waste | Destroyed C-40 Crusher 21337 | -5/Waste | Found Damper Plating 21340 | -5/Waste | Found Damper Plating 21344 | -5/Waste | Found Damper Plating 21369 | -5/Waste | EMP discharged 21432 | -5/Waste | Destroyed C-40 Crusher 21441 | -5/Waste | Found Damper Plating 21461 | -5/Waste | Found Damper Plating 21469 | -5/Waste | EMP discharged 21560 | -5/Waste | Discovered new exit (range 12) 21566 | -5/Waste | Identified exit to Factory 21567 | -5/Waste | Entered Factory 21859 | -5/Factory | Build established: Hauler-Mutant 22371 | -5/Factory | Fabricated Imp. Powered Armor (x1) 22528 | -5/Factory | Self-destructed Last Messages --------------- 22512_ G-50 Soldier system terminally corrupted. 22514_ Overheating: Hcp. Storage Unit damaged (-108). 22514_ Overheating: Cmb. Airjet damaged (-19). 22514_ Overheating: Exp. Signal Interpreter damaged (-11). 22514_ Overheating: Cmb. Airjet damaged (-69). 22514_ Extracted 59 energy. 22515_ Overheating: Adv. Plasma Cannon damaged (-23). 22517_ Extracted 10 energy. 22518_ Extracted 11 energy. 22519_ Extracted 21 energy. 22520_ Extracted 73 energy. 22520_ G-50 Soldier destroyed. 22521_ Extracted 1 energy. 22522_ Extracted 73 energy. 22522_ Adv. Plasma Cannon destroyed. 22523_ System corrupted: Component data lost. 22523_ Extracted 7 energy. 22524_ Extracted 5 energy. 22525_ S-27 Virus destroyed. 22527_ Acquired Zio. Biocell. Map ----- +----------------------------------------------------+ | ?????????????????????????????????????????????????? | | ?????????????????????????????????????????????????? | | ?????????????????????????????????????????????????? | | ?????????????????????????????????????????????????? | | ?????????????????????????????????????????????????? | | ?????????????????????????????????????????????????? | | ?????????????????????????????????????????????????? | | ?????????????????????????????????????????????????? | | ?????????????????????????????????????????????????? | | ?????????????????????????????????????????????????? | | ?????????????????????????????????????????????????? | | ?????????????????????????????????????????????????? | | ?????????????????????????????????????????????????? | | ?????????????????????????????????????????????????? | | ?????????????????????????????????????????????????? | | ?????????????????????????????????????????????????? | | ?????????????????????????????????????????????????? | | ?????????????????????????????????????????????????? | | ?????????????????????????????????????????????????? | | ???????????????????????????????? ????????????????? | | ?????????????????????###???????# ????????????????? | | ?????????????????????? #????## ####????????????? | | ???????????????????????###############???????????? | | ??????????? ?????????# # #???????????? | | ??????????# ?????# # #???????????? | | ??????????# ##@! # #?????####### | | ??????????# ]]] #! # ##????# | | ??????????# ]] ## # #????# | | ??????????# ]] ???# % # #????# | | ??????????? """?????# ! * # ##????# | | ????????????????????????# === # #?????# """ | | ????????????????????????# =!%!* # #?????# """ | | ????????????????????????# ! ! =###?????# """ | | ????????????????????????# % = #???????# | | ????????????????????????# = [#?????### """ | | ????????????????????????# " F" % #?????# """ | | ????????????????????????# " "=!s[ #?????## """ | | ????????????????????????# ss ##?????## | | ????????????????????############C################# | | ??????????????????? !% | | ??????????????????? | | ??????????????????? | | ??????????????????? | | ?????????????????? | | ?????????????????? | | ?????????????????? | | ????????????????????#### #######+########+######+# | | ???????????????????????#??# #?????????? | | ??????????????????????????# ! #?????????? | | ??????????????????????????# * #?????????? | +----------------------------------------------------+ Best States ------------- Heat Dissipation 97 Energy Generation 18 Energy Capacity 700 Matter Stores 550 Matter Capacity 550 Sight Range 20 Robot Scan Range 30 Terrain Scan Range 18 Terrain Scan Density 10 Jamming Range 22 Armor Coverage 1600 Resistance: KI 40 Resistance: EM 90 Core Shielding 20 Weapon Shielding 100 Phase Shifting 15 Evasion (%) 65 Target Analysis 5 Armor Integrity Analysis 50 Recoil Reduction 3 Matter Filtering 30 Salvage Targeting 2 Offensive Hacking 23 Defensive Hacking 24 Item Schematics ----------------- Exp. Sensor Array | -9/Materials | Scanalyzed Cmb. Airjet | -9/Materials | Scanalyzed Lrg. Storage Unit | -9/Materials | Scanalyzed Combat Drone Bay | -7/Data Miner | Free Lgt. Regenerative Plating | -7/Data Miner | Free Exp. Transmission Jammer | -7/Data Miner | Free Imp. Powered Armor | -5/Factory | Hacked Robot Schematics ------------------ S-27 Virus | -7/Data Miner | Free G-50 Soldier | -7/Data Miner | Free X-72 Disruptor | -7/Data Miner | Free I-36 Angel | -7/Data Miner | Free Fabricated ------------ Cmb. Airjet | x2 | -7/Factory Exp. Transmission Jammer | x1 | -6/Factory Exp. Sensor Array | x1 | -5/Factory Cmb. Airjet | x2 | -5/Factory Imp. Powered Armor | x1 | -5/Factory Alien Tech Used ----------------- None Achievements -------------- None Challenges ------------ None Game ------ Seed FrostFlightMaul Manual? 0 Play Time 03:09:24 Cumulative 154.8 hours Start 2020.11.17 @ 21:58:53 End 2020.11.18 @ 11:40:08 Sessions 3 Manual Loads 0 Difficulty Rogue Special Mode Halloween2020/ForbiddenLore Game No. 76 Rogue 76 Adventurer 0 Explorer 0 Win Type - Total 1 Types 1/0/0/0/0/0/0/0/0 Lore% 54 Gallery% 61 Achievement% 49 Wizard Run 0 Options --------- ASCII 1 Keyboard 1 Movement Vi Keybinds 0 Fullscreen 1 Font 16/Terminus Map View 75x55 Tactical HUD 1 Map Filters NONE Filters NONE Steam 1 RUN: 162f9bbf-c2d5-4994-86df-dcf2dbcbf14b